bitfinex-derivatives/quotes_ETHF0:USTF0_20240905
["timestamp","ask_amount","ask_price","bid_price","bid_amount"]
[1725518481269,5.1335,2395.5,2395.0,2.89]
[1725518481578,5.1335,2395.5,2394.8,1.9471658]
[1725518481579,3.2078,2395.5,2395.3,0.29225]
[1725518482064,3.2078,2395.5,2395.3,1.23294]
[1725518482775,1.9755,2395.9,2395.4,2.89]
[1725518482976,3.2078,2396.0,2395.9,0.29218]
[1725518483378,3.2078,2396.0,2395.8,3.18218]
[1725518483575,3.2078,2396.0,2395.8,2.89]
[1725518483875,3.2078,2396.0,2395.8,3.18218]
[1725518484174,3.2078,2396.0,2395.9,0.29218]
[1725518484576,3.2078,2396.0,2395.8,3.18218]
[1725518485280,3.2078,2396.0,2395.8,2.89]
[1725518485778,3.2078,2396.0,2395.6,2.89]
[1725518485979,3.2078,2396.0,2395.4,4.8887]
[1725518485980,0.29219,2395.8,2395.4,4.8887]
[1725518486184,0.9582,2395.9,2395.4,4.8887]
[1725518486185,2.25688,2395.9,2395.4,4.8887]
[1725518486480,3.2078,2396.0,2395.6,2.89]
[1725518486678,2.89,2396.4,2395.8,2.89]
[1725518486679,3.2078,2396.3,2395.8,2.89]
[1725518486883,10.1870323,2397.1,2395.4,1.9987]
[1725518486884,0.29205,2397.0,2396.3,0.29212]
[1725518487188,0.29203,2397.2,2396.9,2.89]
[1725518487375,0.29203,2397.1,2396.9,2.89]
[1725518487570,1.0318,2397.2,2396.9,2.89]
[1725518488674,1.0318,2397.2,2396.7,2.89]
[1725518488675,4.2396,2397.2,2396.7,2.89]
[1725518488883,0.29203,2397.1,2396.7,2.89]
[1725518489081,4.2396,2397.2,2396.7,2.89]
[1725518490085,4.2396,2397.2,2396.7,3.85]
[1725518490086,1.0318,2397.2,2396.7,3.85]
[1725518490284,1.0318,2397.2,2396.9,0.29205]
[1725518490581,1.0065,2397.5,2397.0,4.14204]
[1725518491184,1.0065,2397.5,2397.0,3.85]
[1725518491884,4.2143,2397.5,2397.0,3.85]
[1725518492080,3.2078,2397.5,2397.1,0.29203]
[1725518492383,4.14192,2398.1,2397.4,3.2078]
[1725518492384,3.2078,2397.9,2397.4,3.2078]
[1725518492580,3.2078,2397.9,2397.8,3.85]
[1725518492781,3.2078,2397.9,2397.8,4.14194]
[1725518492983,3.2078,2397.9,2397.8,8.31234]
[1725518493172,0.9989,2398.1,2397.8,8.0204]
[1725518493378,0.9989,2398.1,2397.8,3.85]
[1725518494283,0.9989,2398.1,2397.8,4.14194]
[1725518494585,0.9989,2398.1,2397.7,0.9997]
[1725518496186,0.9989,2398.1,2397.8,3.85]
[1725518496877,0.9989,2398.1,2397.6,0.0062658]
[1725518497185,3.2078,2398.0,2397.6,0.0062658]
[1725518497883,3.2078,2398.0,2397.6,0.2982358]
[1725518498085,3.2078,2398.0,2397.6,0.0062658]
[1725518498786,0.9989,2398.1,2397.8,3.85]
[1725518500492,0.9989,2398.1,2397.7,0.29195]
[1725518500687,0.9989,2398.1,2397.6,0.2982258]
[1725518500887,0.9989,2398.1,2397.8,0.29194]
[1725518502293,3.2078,2398.3,2398.0,0.29191]
[1725518502792,1.9105,2398.5,2398.1,0.2919]
[1725518502990,2.20236,2398.5,2398.0,0.29192]
[1725518503195,2.20236,2398.5,2397.9,1.24773]
[1725518503382,3.49967,2398.4,2397.9,0.29193]
[1725518503781,3.49967,2398.4,2397.8,4.14194]
[1725518503782,0.29189,2398.3,2397.8,4.14194]
[1725518503989,3.49968,2398.4,2397.9,0.29193]
[1725518504294,3.2078,2398.4,2397.9,0.29193]
[1725518504488,3.2078,2398.8,2398.1,3.85]
[1725518504693,3.49963,2398.8,2398.2,0.2919]
[1725518504888,3.49963,2398.8,2398.3,0.29188]
[1725518505090,0.29184,2398.7,2398.2,2.27829]
[1725518505290,1.30924,2398.7,2398.2,2.27829]
[1725518505494,1.0174,2398.7,2398.2,1.9864]
[1725518505889,3.2078,2398.5,2397.8,3.85]
[1725518506086,1.0174,2398.7,2397.8,3.85]
[1725518506087,3.2078,2398.2,2397.8,3.85]
[1725518506392,3.2078,2398.2,2397.7,1.948]
[1725518506692,4.2252,2398.2,2397.8,0.29194]
[1725518506889,4.2252,2398.2,2397.7,2.23995]
[1725518507195,4.5171,2398.2,2397.7,2.23995]
[1725518507491,3.49974,2397.9,2397.6,0.0062658]
[1725518507798,3.2078,2397.9,2397.6,0.0062658]
[1725518508001,0.29191,2398.1,2397.6,0.2982358]
[1725518508200,5.2296,2398.2,2397.6,3.8562658]
[1725518508595,5.2296,2398.2,2397.7,1.0033]
[1725518508789,0.29187,2398.4,2397.9,0.29193]
[1725518508984,3.2078,2398.2,2397.8,1.24444]
[1725518509489,3.2078,2398.2,2397.6,3.8562658]
[1725518509490,0.29192,2398.0,2397.6,0.0062658]
[1725518509687,1.24611,2398.1,2397.6,0.2982358]
[1725518509894,3.2078,2398.2,2397.6,3.8562658]
[1725518510096,3.2078,2398.2,2397.8,3.85]
[1725518510396,3.2078,2398.2,2398.1,0.29191]
[1725518510892,1.0044,2398.5,2398.2,0.2919]
[1725518511099,1.0044,2398.5,2398.3,0.29188]
[1725518511596,0.949,2398.7,2398.3,0.29188]
[1725518512097,0.949,2398.7,2398.3,3.17188]
[1725518512305,0.949,2398.7,2398.4,0.29187]
[1725518512691,0.949,2398.7,2398.3,3.17188]
[1725518512891,0.949,2398.7,2398.4,0.29187]
[1725518513395,0.949,2398.7,2398.3,3.17188]
[1725518514393,1.24084,2398.7,2398.3,3.17188]
[1725518514790,1.24084,2398.7,2398.3,2.88]
[1725518514791,3.2078,2398.5,2398.3,2.88]
[1725518515007,3.2078,2398.5,2398.1,2.88]
[1725518515203,3.2078,2398.5,2398.1,3.1719]
[1725518515498,3.49966,2398.5,2398.1,3.1719]
[1725518515689,3.49966,2398.5,2398.0,4.16661]
[1725518515895,3.2078,2398.5,2398.0,3.8747]
[1725518516102,3.2078,2398.5,2398.2,0.29189]
[1725518516394,3.2078,2398.5,2398.2,3.17189]
[1725518516600,0.949,2398.7,2398.2,2.88]
[1725518516995,3.2078,2398.5,2398.2,3.17189]
[1725518518192,3.2078,2398.5,2398.2,2.88]
[1725518518597,0.9383,2398.4,2398.2,2.88]
[1725518518900,0.9383,2398.4,2398.1,0.2919]
[1725518519100,3.2078,2398.2,2398.1,0.2919]
[1725518519298,3.2078,2398.2,2398.0,3.8747]
[1725518520397,3.2078,2398.6,2398.0,3.8747]
[1725518520701,3.2078,2398.6,2398.3,2.88]
[1725518520910,3.49965,2398.6,2398.3,2.88]
[1725518521590,3.2078,2398.6,2398.3,2.88]
[1725518521794,3.2078,2398.6,2398.3,3.17188]
[1725518522802,0.949,2398.7,2398.3,3.17188]
[1725518523201,0.949,2398.7,2398.4,0.29187]
[1725518523394,0.949,2398.7,2398.5,2.88]
[1725518524703,1.24084,2398.7,2398.3,3.17188]
[1725518524905,3.2078,2398.6,2398.3,3.17188]
[1725518525691,3.2078,2398.6,2398.0,0.9947]
[1725518525692,0.29188,2398.4,2398.1,2.88]
[1725518525892,3.2078,2398.2,2398.1,2.88]
[1725518528404,9.2078,2398.2,2397.6,0.0062658]
[1725518528593,2.88,2398.4,2397.6,0.0062658]
[1725518528594,3.2078,2397.9,2397.6,0.0062658]
[1725518528993,3.2078,2397.9,2397.6,3.1782358]
[1725518529196,5.14,2398.4,2397.8,2.88]
[1725518529393,5.0857,2398.4,2398.1,0.29191]
[1725518529597,0.9747,2398.4,2398.0,3.17191]
[1725518529909,0.9747,2398.4,2398.1,1.9287]
[1725518530212,0.9747,2398.4,2398.1,2.2206]
[1725518531002,0.9747,2398.4,2398.1,1.9287]
[1725518531205,1.26657,2398.4,2398.1,1.9287]
[1725518531511,3.4997,2398.2,2397.8,2.88]
[1725518531697,3.2078,2398.2,2397.9,0.29193]
[1725518532010,3.2078,2398.2,2397.8,4.8087]
[1725518532199,0.29192,2398.1,2397.8,4.8087]
[1725518532401,0.29193,2398.0,2397.8,1.9287]
[1725518532595,3.2078,2397.9,2397.8,0.9716]
[1725518532795,0.9393,2398.2,2397.8,4.14354]
[1725518532995,5.48202751,2398.8,2398.0,2.88]
[1725518532996,3.2078,2398.7,2398.0,2.88]
[1725518533201,4.1786,2398.7,2398.2,2.88]
[1725518533405,4.1786,2398.7,2398.3,0.9425]
[1725518533997,4.47044,2398.7,2398.3,0.9425]
[1725518534403,4.47044,2398.7,2398.2,3.17189]
[1725518534404,3.2078,2398.4,2398.1,2.88]
[1725518534606,3.49968,2398.4,2397.9,5.15593]
[1725518534800,3.2078,2398.1,2397.9,4.864]
[1725518535110,3.2078,2398.1,2397.9,5.15593]
[1725518539307,3.2078,2398.1,2397.9,3.8505]
[1725518539615,3.2078,2398.1,2397.7,3.8225]
[1725518539616,0.29193,2398.0,2397.7,3.8225]
[1725518539910,0.29193,2398.0,2397.6,0.0062658]
[1725518539911,0.29196,2397.7,2397.6,0.0062658]
[1725518540404,1.23446,2397.7,2397.6,0.0062658]
[1725518543013,7.23446,2397.7,2397.6,0.0062658]
[1725518543210,10.11446,2397.7,2397.6,0.0062658]
[1725518543415,1.23446,2397.7,2397.6,0.0062658]
[1725518544111,0.9425,2397.7,2397.6,0.0062658]
[1725518544415,3.2078,2397.8,2397.6,0.0062658]
[1725518544712,3.2078,2397.8,2397.6,1.8951658]
[1725518544918,3.2078,2397.8,2397.6,4.7751658]
[1725518545107,3.2078,2397.8,2397.6,5.0671258]
[1725518546214,3.2078,2397.8,2397.6,4.7751658]
[1725518548407,3.2078,2397.8,2397.6,5.0671358]
[1725518548617,3.2078,2397.8,2397.6,4.7751658]
[1725518549312,3.2078,2397.8,2397.6,1.8951658]
[1725518549518,3.2078,2397.8,2397.6,0.9592658]
[1725518549713,3.2078,2397.8,2397.6,0.0062658]
[1725518549922,0.29196,2397.7,2397.6,0.0062658]
[1725518550114,1.24196,2397.7,2397.6,0.0062658]
[1725518550914,4.11710243,2398.0,2397.6,0.0062658]
[1725518550915,1.32243,2398.0,2397.6,0.0062658]
[1725518551119,3.2078,2397.8,2397.6,0.0062658]
[1725518552311,1.0305,2398.0,2397.7,2.88]
[1725518552521,1.0305,2398.0,2397.8,0.9814]
[1725518556413,1.32242,2398.0,2397.8,0.9814]
[1725518556613,1.32242,2398.0,2397.7,2.88]
[1725518556813,3.2078,2397.8,2397.6,0.0062658]
[1725518559125,3.49975,2397.8,2397.6,0.0062658]
[1725518559315,3.2078,2397.8,2397.6,0.0062658]
[1725518560223,0.29196,2397.7,2397.6,0.0062658]
[1725518560927,1.30266,2397.7,2397.6,0.0062658]
[1725518561418,1.0305,2398.0,2397.6,0.0062658]
[1725518561724,1.0305,2398.0,2397.7,2.88]
[1725518561920,1.0305,2398.0,2397.7,3.8213]
[1725518562524,1.0305,2398.0,2397.7,4.11326]
[1725518562924,3.2078,2397.8,2397.7,2.88]
[1725518564712,3.2078,2397.8,2397.6,0.0062658]
[1725518564914,3.2078,2397.8,2397.6,0.2982358]
[1725518565126,3.2078,2397.8,2397.6,0.0062658]
[1725518565324,3.2078,2397.8,2397.7,0.9963]
[1725518565515,3.2078,2397.8,2397.7,1.28826]
[1725518566127,1.0305,2398.0,2397.7,1.28826]
[1725518566327,1.0305,2398.0,2397.8,1.0273]
[1725518567122,3.4997,2398.2,2397.8,1.0273]
[1725518567325,3.2078,2397.9,2397.8,1.0273]
[1725518568927,3.49974,2397.9,2397.6,0.0062658]
[1725518569127,3.2078,2397.9,2397.6,0.0062658]
[1725518570728,3.2078,2397.9,2397.6,1.2641258]
[1725518571030,3.2078,2397.9,2397.6,0.9721658]
[1725518571223,3.2078,2397.9,2397.6,1.9563658]
[1725518571421,3.2078,2397.9,2397.6,2.2483258]
[1725518573628,3.2078,2397.9,2397.7,0.29196]
[1725518574624,0.9688,2398.1,2397.7,0.29196]
[1725518574828,0.9688,2398.1,2397.7,1.007]
[1725518575030,1.26071,2398.1,2397.7,1.29895]
[1725518576427,1.26071,2398.1,2397.7,1.007]
[1725518576630,1.26071,2398.1,2397.7,1.29895]
[1725518576832,3.2078,2397.9,2397.7,1.29895]
[1725518577623,3.2078,2397.9,2397.7,1.007]
[1725518578020,3.2078,2397.9,2397.7,1.29895]
[1725518578432,3.2078,2397.9,2397.8,0.29194]
[1725518580427,3.2078,2397.9,2397.7,1.29895]
[1725518580627,3.2078,2397.9,2397.8,0.29194]
[1725518581023,0.9688,2398.1,2397.8,0.29194]
[1725518582135,0.9688,2398.1,2398.0,3.17192]
[1725518582339,0.2919,2398.2,2398.0,2.88]
[1725518582529,1.2924,2398.2,2398.0,2.88]
[1725518582830,1.0005,2398.2,2398.0,2.88]
[1725518583934,1.2924,2398.2,2398.0,2.88]
[1725518584134,1.2924,2398.2,2397.8,2.88]
[1725518584337,1.0005,2398.2,2397.8,2.88]
[1725518584533,1.2924,2398.2,2397.8,3.17194]
[1725518585130,0.29191,2398.1,2397.8,2.88]
[1725518585334,1.2924,2398.2,2397.8,3.17194]
[1725518586727,1.0005,2398.2,2397.9,0.29193]
[1725518587032,1.0005,2398.2,2398.0,2.88]
[1725518591936,1.0005,2398.2,2398.0,3.17192]
[1725518592137,12.6647523,2398.6,2398.1,2.88]
[1725518592336,12.6647523,2398.6,2397.7,4.2148]
[1725518592337,3.2078,2398.6,2398.4,2.88]
[1725518592533,4.111,2398.8,2398.7,0.29183]
[1725518592728,2.9795,2399.0,2398.7,0.29183]
[1725518592934,2.9795,2399.0,2398.7,3.17183]
[1725518595242,2.9795,2399.0,2398.7,2.88]
[1725518595438,3.2078,2398.9,2398.7,3.17183]
[1725518598137,3.2078,2398.9,2398.8,0.29182]
[1725518598635,3.2078,2398.9,2398.8,1.24932]
[1725518599341,3.2078,2398.9,2398.8,2.27362]
[1725518599538,4.111,2399.2,2399.0,0.29179]
[1725518599839,4.111,2399.2,2399.1,2.88]
[1725518600435,4.111,2399.2,2399.0,2.88]
[1725518600635,3.2078,2399.1,2399.0,2.88]
[1725518604334,3.49959,2399.1,2398.9,0.00625261]
[1725518604645,0.2918,2399.0,2398.9,0.00625261]
[1725518604954,3.2078,2399.1,2398.9,0.00625261]
[1725518605542,3.2078,2399.1,2398.9,0.96605261]
[1725518606138,3.2078,2399.1,2398.9,2.27366261]
[1725518606340,3.2078,2399.1,2398.9,1.98185261]
[1725518607341,1.0071,2399.3,2398.9,2.27366261]
[1725518607638,1.0071,2399.3,2399.0,1.0152]
[1725518608241,1.29886,2399.3,2399.0,1.0152]
[1725518608950,1.29886,2399.3,2398.9,1.98185261]
[1725518608951,3.2078,2399.1,2398.9,1.98185261]
[1725518609342,3.2078,2399.1,2398.9,2.27366261]
[1725518609648,3.2078,2399.1,2398.9,1.98185261]
[1725518610040,3.2078,2399.1,2398.9,0.96605261]
[1725518610243,3.2078,2399.1,2398.9,0.00625261]
[1725518610447,3.49959,2399.1,2398.9,0.00625261]
[1725518610650,0.9551,2399.0,2398.9,0.00625261]
[1725518611539,1.2469,2399.0,2398.9,0.00625261]
[1725518612540,0.9551,2399.0,2398.9,0.00625261]
[1725518612949,3.49959,2399.1,2398.9,0.00625261]
[1725518613147,3.2078,2399.1,2398.9,0.00625261]
[1725518613347,3.2078,2399.1,2398.9,0.94685261]
[1725518614453,3.2078,2399.1,2398.9,1.23866261]
[1725518614651,3.2078,2399.1,2398.9,0.94685261]
[1725518616148,3.2078,2399.1,2398.9,0.00625261]
[1725518616454,3.49959,2399.1,2398.9,0.00625261]
[1725518618454,0.2918,2399.0,2398.9,0.00625261]
[1725518618750,4.47646773,2399.0,2398.1,2.972]
[1725518618951,3.2078,2398.4,2398.1,2.972]
[1725518619153,3.2078,2398.7,2398.3,0.29188]
[1725518619656,3.2078,2398.4,2398.3,0.00625261]
[1725518620047,4.2109,2398.4,2398.3,0.00625261]
[1725518620750,5.2257,2398.4,2398.3,0.00625261]
[1725518622251,5.2257,2398.4,2397.1,0.73007]
[1725518622252,8.1057,2398.4,2397.8,0.29194]
[1725518622549,3.2078,2398.0,2397.8,0.29194]
[1725518624644,3.2078,2398.0,2397.9,0.29193]
[1725518625855,3.2078,2398.0,2397.8,0.29194]
[1725518626047,3.2078,2398.0,2397.9,0.29193]
[1725518626352,3.2078,2398.0,2397.8,0.29194]
[1725518628351,3.2078,2398.0,2397.9,0.29193]
[1725518629043,3.2078,2398.0,2397.7,5.80725261]
[1725518629252,3.49972,2398.0,2397.7,5.80725261]
[1725518629557,0.29194,2397.9,2397.7,1.95495261]
[1725518629759,2.31654,2397.9,2397.7,1.95495261]
[1725518629957,2.0246,2397.9,2397.7,1.95495261]
[1725518630956,0.9931,2397.9,2397.7,2.24691261]
[1725518631755,3.2078,2398.0,2397.7,4.83495261]
[1725518631959,3.2078,2398.0,2397.8,0.29194]
[1725518632259,3.2078,2398.0,2397.8,1.24654]
[1725518633466,3.2078,2398.0,2397.8,0.9546]
[1725518633859,3.2078,2398.0,2397.7,1.95495261]
[1725518634067,1.0234,2397.9,2397.7,1.95495261]
[1725518634657,1.0234,2397.9,2397.7,2.24690261]
[1725518634963,3.2078,2398.0,2397.8,0.29194]
[1725518635168,3.2078,2398.0,2397.9,0.29193]
[1725518638153,1.0234,2398.3,2398.0,0.29191]
[1725518638352,3.2078,2398.2,2397.9,0.29192]
[1725518638556,3.2078,2398.2,2398.0,0.29192]
[1725518640262,3.2078,2398.2,2398.1,0.9817]
[1725518640467,3.2078,2398.2,2398.1,1.27361]
[1725518640666,4.111,2398.4,2398.2,0.29189]
[1725518640860,0.9732,2398.5,2398.2,1.28959]
[1725518641059,1.26506,2398.5,2398.2,1.28959]
[1725518641361,0.9732,2398.5,2398.3,0.29188]
[1725518642365,0.9732,2398.5,2398.4,0.29187]
[1725518642759,0.9732,2398.5,2398.3,0.29188]
[1725518643068,0.9732,2398.5,2398.3,0.29187]
[1725518643461,0.9732,2398.5,2398.4,0.29187]
[1725518646069,0.9732,2398.5,2398.3,3.17188]
[1725518646958,0.9732,2398.5,2398.2,1.28959]
[1725518647368,3.49966,2398.6,2398.3,0.29188]
[1725518647564,0.29186,2398.5,2398.2,0.29189]
[1725518647961,3.49965,2398.6,2398.3,0.29188]
[1725518648264,3.2078,2398.6,2398.3,0.29188]
[1725518649662,3.2078,2398.6,2398.1,2.88]
[1725518649962,3.2078,2398.6,2398.3,0.29188]
[1725518650269,3.2078,2398.6,2398.4,0.29186]
[1725518651265,3.2078,2398.6,2398.3,0.29188]
[1725518651266,3.49965,2398.6,2398.3,0.29188]
[1725518651465,0.29186,2398.5,2398.2,0.29189]
[1725518651665,0.29187,2398.4,2398.1,2.88]
[1725518651966,3.2078,2398.2,2397.9,2.88]
[1725518652366,3.2078,2398.2,2398.0,0.29191]
[1725518653077,3.2078,2398.2,2397.9,3.17193]
[1725518653261,3.4997,2398.2,2397.9,2.88]
[1725518653867,3.4997,2398.2,2397.9,3.17193]
[1725518654069,3.2078,2398.2,2397.9,3.17193]
[1725518656570,0.29191,2398.1,2397.9,2.88]
[1725518656772,3.2078,2398.2,2397.7,3.17820261]
[1725518656976,3.4997,2398.2,2397.8,0.29194]
[1725518658570,0.29191,2398.1,2397.7,3.17820261]
[1725518660274,3.49971,2398.1,2397.7,3.17820261]
[1725518660875,3.2078,2398.1,2397.7,3.17820261]
[1725518661676,3.2078,2398.1,2397.8,0.29194]
[1725518661873,3.2078,2398.1,2397.7,3.17820261]
[1725518662179,3.2078,2398.1,2397.9,1.2]
[1725518662774,3.49971,2398.1,2397.7,0.29820261]
[1725518662981,3.49971,2398.1,2397.8,1.2]
[1725518663371,3.2078,2398.1,2397.8,1.49194]
[1725518664179,3.2078,2398.1,2397.8,1.49193]
[1725518664473,3.2078,2398.1,2397.9,0.29193]
[1725518664872,3.2078,2398.1,2398.0,1.2]
[1725518665073,0.29189,2398.3,2398.0,1.2]
[1725518665277,3.49968,2398.4,2398.2,1.2]
[1725518665673,3.49968,2398.4,2398.1,0.29191]
[1725518665875,3.49968,2398.4,2398.0,1.49191]
[1725518666183,3.2078,2398.4,2398.1,0.2919]
[1725518666979,3.49967,2398.4,2398.0,1.49191]
[1725518667177,3.2078,2398.1,2397.7,1.49819261]
[1725518669676,3.49971,2398.1,2397.7,1.49819261]
[1725518670277,3.49971,2398.1,2397.7,1.49821261]
[1725518672083,3.49971,2398.1,2397.7,1.20625261]
[1725518673179,0.29192,2398.0,2397.7,1.20625261]
[1725518673782,3.2078,2398.1,2397.7,1.20625261]
[1725518673783,3.49971,2398.1,2397.7,1.20625261]
[1725518673987,4.4078,2398.1,2397.7,0.00625261]
[1725518674287,3.49974,2397.8,2397.7,0.00625261]
[1725518674487,3.2078,2397.8,2397.7,0.00625261]
[1725518675878,3.2078,2397.8,2397.7,1.49821261]
[1725518676192,3.0204,2397.9,2397.8,0.29194]
[1725518676377,3.0204,2397.9,2397.8,1.49194]
[1725518676688,3.0204,2397.9,2397.8,1.2]
[1725518676981,3.0204,2397.9,2397.8,1.49194]
[1725518678183,1.0243,2397.9,2397.8,1.49194]
[1725518678380,1.9961,2398.3,2398.1,0.2919]
[1725518678681,3.0204,2398.3,2398.0,1.49191]
[1725518679286,3.0204,2398.3,2398.0,1.2]
[1725518679486,3.0204,2398.3,2398.0,1.49191]
[1725518679677,3.0204,2398.3,2398.1,0.2919]
[1725518680184,3.0204,2398.3,2398.0,1.49191]
[1725518680485,3.31228,2398.3,2398.0,1.49191]
[1725518680683,3.0204,2398.3,2398.0,1.49191]
[1725518681080,3.31229,2398.3,2398.0,1.49191]
[1725518681583,3.0204,2398.3,2398.2,1.2]
[1725518681783,3.0204,2398.3,2398.2,1.4919]
[1725518683682,2.0046,2398.3,2398.2,1.4919]
[1725518683887,2.0046,2398.3,2398.2,1.2]
[1725518684190,2.0046,2398.3,2398.1,0.2919]
[1725518684384,2.0046,2398.3,2398.2,0.2919]
[1725518684886,2.0046,2398.3,2398.1,0.2919]
[1725518685292,2.0046,2398.3,2398.0,1.2]
[1725518685293,2.0046,2398.3,2398.2,0.2919]
[1725518685589,2.0046,2398.3,2398.2,1.4919]
[1725518686785,2.0046,2398.3,2397.8,5.1033]
[1725518686786,2.0046,2398.3,2398.1,0.2919]
[1725518688794,2.0046,2398.3,2398.0,1.49191]
[1725518690390,2.0046,2398.3,2398.1,0.29191]
[1725518691393,2.0046,2398.3,2398.1,0.2919]
[1725518692089,2.0046,2398.3,2398.2,0.2919]
[1725518692284,2.0046,2398.3,2398.1,0.2919]
[1725518693387,2.0046,2398.3,2398.2,0.2919]
[1725518693589,2.0046,2398.3,2398.1,0.2919]
[1725518693983,2.29648,2398.3,2398.0,1.49191]
[1725518694897,2.0046,2398.3,2398.1,0.29191]
[1725518695286,2.0046,2398.3,2398.0,1.49191]
[1725518695485,2.0046,2398.3,2398.1,0.29191]
[1725518695692,2.0046,2398.3,2398.1,0.2919]
[1725518696599,2.0046,2398.3,2398.0,1.49191]
[1725518697092,2.29648,2398.3,2398.0,1.49191]
[1725518697491,0.2919,2398.2,2397.9,0.29193]
[1725518697694,3.49971,2398.1,2397.8,3.38744]
[1725518697893,0.9522,2398.0,2397.8,3.38744]
[1725518698193,0.9522,2398.0,2397.8,3.0955]
[1725518698600,0.9522,2398.0,2397.9,0.29193]
[1725518699100,3.49649,2398.3,2398.0,0.29192]
[1725518699298,0.9522,2398.2,2398.0,0.29191]
[1725518700500,0.29193,2398.0,2397.8,3.0955]
[1725518700796,4.2132,2397.9,2397.7,0.29821261]
[1725518701000,0.9944,2397.8,2397.7,0.00625261]
[1725518702001,3.2078,2397.9,2397.7,1.20625261]
[1725518702208,3.2078,2397.9,2397.8,4.40684]
[1725518702499,4.111,2398.3,2398.2,0.2919]
[1725518702693,1.9471,2398.4,2398.1,1.4919]
[1725518702694,3.24437,2398.4,2398.1,1.4919]
[1725518702893,3.24437,2398.4,2398.2,1.0067]
[1725518704409,0.29188,2398.3,2398.0,1.2]
[1725518704600,3.24438,2398.4,2398.0,1.49192]
[1725518706496,3.2078,2398.2,2398.0,1.49192]
[1725518709501,3.2078,2398.2,2398.1,0.29191]
[1725518709897,3.2078,2398.2,2398.1,1.49191]
[1725518713508,1.28106,2398.5,2398.2,0.29189]
[1725518713704,3.2078,2398.4,2398.2,1.24609]
[1725518714009,3.49968,2398.4,2398.2,0.9542]
[1725518714408,0.29188,2398.3,2398.2,0.9542]
[1725518715312,3.2078,2398.4,2398.2,0.9542]
[1725518715712,3.2078,2398.4,2398.2,1.24609]
[1725518715912,3.2078,2398.4,2398.3,0.29188]
[1725518716310,3.2078,2398.4,2398.3,1.27428]
[1725518717008,0.00620865,2398.7,2398.6,0.29185]
[1725518717513,0.00620865,2398.7,2398.6,2.19925]
[1725518720914,0.29803865,2398.7,2398.6,0.9677]
[1725518721118,0.29803865,2398.7,2398.4,1.49187]
[1725518721119,1.49804865,2398.7,2398.4,0.29187]
[1725518721318,1.23915,2398.6,2398.3,1.27428]
[1725518721617,1.8559,2398.6,2398.1,1.9723]
[1725518721816,0.29187,2398.4,2398.1,2.1701]
[1725518722019,0.29187,2398.4,2398.1,0.9701]
[1725518722204,3.2078,2398.5,2398.1,0.9701]
[1725518722205,0.29188,2398.3,2398.1,0.9701]
[1725518722410,0.9459,2398.3,2398.1,0.9701]
[1725518722714,4.447,2398.2,2397.9,0.9463]
[1725518723018,4.1551,2398.2,2397.9,0.9463]
[1725518723607,4.1551,2398.2,2397.7,0.00625261]
[1725518723914,4.447,2398.2,2397.7,0.29821261]
[1725518726122,0.29192,2398.0,2397.7,0.00625261]
[1725518727012,0.9717,2398.1,2397.7,0.00625261]
[1725518727212,3.2078,2397.9,2397.7,0.00625261]
[1725518727619,1.9289,2397.8,2397.7,0.00625261]
[1725518728318,0.9717,2398.1,2397.7,0.00625261]
[1725518728519,1.0011,2398.0,2397.7,2.88625261]
[1725518728716,1.0011,2398.0,2397.7,3.17820261]
[1725518730526,1.0011,2398.0,2397.8,0.29194]
[1725518730719,1.0011,2398.0,2397.9,0.8936]
[1725518732818,3.2078,2398.2,2397.9,3.7736]
[1725518733024,0.9639,2398.3,2398.1,3.1719]
[1725518733729,0.9639,2398.3,2398.2,0.2919]
[1725518734920,14.58184865,2398.7,2398.1,3.7852]
[1725518735119,0.9592,2398.5,2398.3,0.29187]
[1725518735524,0.9592,2398.5,2398.2,0.29189]
[1725518736725,0.9592,2398.5,2398.0,0.9288]
[1725518736726,0.9592,2398.5,2398.3,0.29188]
[1725518736927,0.9592,2398.5,2398.2,0.29189]
[1725518737133,0.9592,2398.5,2398.2,0.2919]
[1725518737318,0.9592,2398.5,2398.3,0.29188]
[1725518737521,0.9592,2398.5,2398.1,2.88]
[1725518737923,0.9592,2398.5,2398.3,0.29188]
[1725518740529,0.9592,2398.5,2398.2,0.29189]
[1725518741630,0.9592,2398.5,2398.3,0.29188]
[1725518741834,0.9592,2398.5,2398.2,0.29189]
[1725518742025,3.49968,2398.4,2398.0,0.9288]
[1725518742335,3.49968,2398.4,2398.0,1.22071]
[1725518742545,0.9683,2398.3,2398.0,1.22071]
[1725518742829,0.9683,2398.3,2398.1,0.29191]
[1725518743327,0.9683,2398.3,2398.0,0.9288]
[1725518743328,0.9683,2398.3,2398.0,0.29191]
[1725518743635,0.9072,2398.2,2398.0,0.29191]
[1725518743824,0.9072,2398.2,2397.9,2.09453]
[1725518744031,0.9154,2398.1,2397.7,0.00625261]
[1725518744330,0.9154,2398.1,2397.8,0.29194]
[1725518744528,0.9154,2398.1,2397.9,0.29193]
[1725518745242,0.9154,2398.1,2398.0,0.29192]
[1725518745625,5.31008,2398.4,2398.3,0.29188]
[1725518745626,4.111,2398.4,2398.3,0.29188]
[1725518745827,0.9676,2398.6,2398.4,0.29187]
[1725518746523,0.9676,2398.6,2398.4,1.22847]
[1725518748034,0.9676,2398.6,2398.5,0.29186]
[1725518751739,0.00620865,2398.7,2398.6,0.29185]
[1725518752235,0.00620865,2398.7,2398.6,3.17185]
[1725518752442,0.00620865,2398.7,2398.6,0.29185]